fUSD/lending_fUSD_20260505
["ID","MTS","AMOUNT","RATE_DAILY","PERIOD"]
[421611654,1777956642000,-500.0,0.00042273,120]
[421611665,1777956642000,-500.0,0.00042273,120]
[421611664,1777956642000,-500.0,0.00042273,120]
[421611658,1777956642000,-500.0,0.00042273,120]
[421611661,1777956642000,-500.0,0.00042273,120]
[421611660,1777956642000,-500.0,0.00042273,120]
[421611631,1777956642000,-500.0,0.00042273,120]
[421611659,1777956642000,-500.0,0.00042273,120]
[421611649,1777956642000,-500.0,0.00042273,120]
[421611628,1777956642000,-500.0,0.00042273,120]
[421611621,1777956642000,-500.0,0.00042273,120]
[421611635,1777956642000,-500.0,0.00042273,120]
[421611662,1777956642000,-500.0,0.00042273,120]
[421611605,1777956642000,-500.0,0.00042273,120]
[421611613,1777956642000,-500.0,0.00042273,120]
[421611614,1777956642000,-500.0,0.00042273,120]
[421611608,1777956642000,-764.0,0.00042273,120]
[421611606,1777956642000,-500.0,0.00042273,120]
[421611609,1777956642000,-500.0,0.00042273,120]
[421611607,1777956642000,-500.0,0.00042273,120]
[421611611,1777956642000,-500.0,0.00042273,120]
[421611612,1777956642000,-500.0,0.00042273,120]
[421611610,1777956642000,-500.0,0.00042273,120]
[421611615,1777956642000,-500.0,0.00042273,120]
[421611618,1777956642000,-500.0,0.00042273,120]
[421611633,1777956642000,-500.0,0.00042273,120]
[421611617,1777956642000,-500.0,0.00042273,120]
[421611620,1777956642000,-500.0,0.00042273,120]
[421611616,1777956642000,-500.0,0.00042273,120]
[421611626,1777956642000,-500.0,0.00042273,120]
[421611622,1777956642000,-500.0,0.00042273,120]
[421611623,1777956642000,-500.0,0.00042273,120]
[421611627,1777956642000,-500.0,0.00042273,120]
[421611625,1777956642000,-500.0,0.00042273,120]
[421611624,1777956642000,-500.0,0.00042273,120]
[421611629,1777956642000,-500.0,0.00042273,120]
[421611639,1777956642000,-500.0,0.00042273,120]
[421611636,1777956642000,-500.0,0.00042273,120]
[421611632,1777956642000,-500.0,0.00042273,120]
[421611637,1777956642000,-500.0,0.00042273,120]
[421611619,1777956642000,-500.0,0.00042273,120]
[421611666,1777956642000,-518.0,0.00042273,120]
[421611668,1777956642000,-500.0,0.00042273,120]
[421611669,1777956642000,-500.0,0.00042273,120]
[421611701,1777956642000,-500.0,0.00042273,120]
[421611700,1777956642000,-500.0,0.00042273,120]
[421611715,1777956642000,-500.0,0.00042273,120]
[421611705,1777956642000,-500.0,0.00042273,120]
[421611706,1777956642000,-500.0,0.00042273,120]
[421611707,1777956642000,-500.0,0.00042273,120]
[421611704,1777956642000,-500.0,0.00042273,120]
[421611716,1777956642000,-500.0,0.00042273,120]
[421611708,1777956642000,-500.0,0.00042273,120]
[421611712,1777956642000,-500.0,0.00042273,120]
[421611714,1777956642000,-500.0,0.00042273,120]
[421611710,1777956642000,-500.0,0.00042273,120]
[421611713,1777956642000,-500.0,0.00042273,120]
[421611699,1777956642000,-500.0,0.00042273,120]
[421611711,1777956642000,-500.0,0.00042273,120]
[421611720,1777956642000,-500.0,0.00042273,120]
[421611721,1777956642000,-500.0,0.00042273,120]
[421611718,1777956642000,-500.0,0.00042273,120]
[421611719,1777956642000,-500.0,0.00042273,120]
[421611722,1777956642000,-500.0,0.00042273,120]
[421611728,1777956642000,-500.0,0.00042273,120]
[421611727,1777956642000,-500.0,0.00042273,120]
[421611726,1777956642000,-500.0,0.00042273,120]
[421611725,1777956642000,-500.0,0.00042273,120]
[421611724,1777956642000,-500.0,0.00042273,120]
[421611723,1777956642000,-500.0,0.00042273,120]
[421611730,1777956642000,-500.0,0.00042273,120]
[421611729,1777956642000,-500.0,0.00042273,120]
[421611717,1777956642000,-500.0,0.00042273,120]
[421611696,1777956642000,-500.0,0.00042273,120]
[421611709,1777956642000,-500.0,0.00042273,120]
[421611693,1777956642000,-500.0,0.00042273,120]
[421611670,1777956642000,-500.0,0.00042273,120]
[421611694,1777956642000,-500.0,0.00042273,120]
[421611667,1777956642000,-500.0,0.00042273,120]
[421611671,1777956642000,-500.0,0.00042273,120]
[421611673,1777956642000,-500.0,0.00042273,120]
[421611677,1777956642000,-500.0,0.00042273,120]
[421611674,1777956642000,-500.0,0.00042273,120]
[421611676,1777956642000,-500.0,0.00042273,120]
[421611675,1777956642000,-500.0,0.00042273,120]
[421611672,1777956642000,-500.0,0.00042273,120]
[421611687,1777956642000,-500.0,0.00042273,120]
[421611689,1777956642000,-500.0,0.00042273,120]
[421611688,1777956642000,-500.0,0.00042273,120]
[421611690,1777956642000,-500.0,0.00042273,120]
[421611684,1777956642000,-500.0,0.00042273,120]
[421611678,1777956642000,-500.0,0.00042273,120]
[421611703,1777956642000,-500.0,0.00042273,120]
[421611679,1777956642000,-500.0,0.00042273,120]
[421611698,1777956642000,-500.0,0.00042273,120]
[421611697,1777956642000,-500.0,0.00042273,120]
[421611692,1777956642000,-500.0,0.00042273,120]
[421611691,1777956642000,-500.0,0.00042273,120]
[421611682,1777956642000,-500.0,0.00042273,120]
[421611702,1777956642000,-500.0,0.00042273,120]
[421611695,1777956642000,-500.0,0.00042273,120]
[421611683,1777956642000,-500.0,0.00042273,120]
[421611680,1777956642000,-500.0,0.00042273,120]
[421611681,1777956642000,-500.0,0.00042273,120]
[421611686,1777956642000,-500.0,0.00042273,120]
[421611685,1777956642000,-500.0,0.00042273,120]
[421611778,1777956643000,-500.0,0.00042273,120]
[421611786,1777956643000,-500.0,0.00042273,120]
[421611782,1777956643000,-500.0,0.00042273,120]
[421611785,1777956643000,-500.0,0.00042273,120]
[421611776,1777956643000,-500.0,0.00042273,120]
[421611768,1777956643000,-584.0,0.00042273,120]
[421611777,1777956643000,-500.0,0.00042273,120]
[421611775,1777956643000,-500.0,0.00042273,120]
[421611764,1777956643000,-500.0,0.00042273,120]
[421611761,1777956643000,-500.0,0.00042273,120]
[421611770,1777956643000,-500.0,0.00042273,120]
[421611780,1777956643000,-500.0,0.00042273,120]
[421611779,1777956643000,-500.0,0.00042273,120]
[421611784,1777956643000,-500.0,0.00042273,120]
[421611794,1777956643000,-659.0,0.00042273,120]
[421611783,1777956643000,-500.0,0.00042273,120]
[421611787,1777956643000,-500.0,0.00042273,120]
[421611789,1777956643000,-500.0,0.00042273,120]
[421611797,1777956643000,-852.0,0.0004229,7]
[421611801,1777956643000,-16621.90729868,0.000423,120]
[421611791,1777956643000,-500.0,0.00042273,120]
[421611800,1777956643000,-39166.0,0.000423,60]
[421611799,1777956643000,-636.0,0.0004229,7]
[421611788,1777956643000,-500.0,0.00042273,120]
[421611796,1777956643000,-888.0,0.00042287,60]
[421611790,1777956643000,-500.0,0.00042273,120]
[421611793,1777956643000,-500.0,0.00042273,120]
[421611792,1777956643000,-500.0,0.00042273,120]
[421611769,1777956643000,-500.0,0.00042273,120]
[421611781,1777956643000,-500.0,0.00042273,120]
[421611771,1777956643000,-500.0,0.00042273,120]
[421611741,1777956643000,-500.0,0.00042273,120]
[421611766,1777956643000,-998.0,0.00042273,120]
[421611738,1777956643000,-500.0,0.00042273,120]
[421611795,1777956643000,-888.0,0.00042286,60]
[421611743,1777956643000,-500.0,0.00042273,120]
[421611739,1777956643000,-500.0,0.00042273,120]
[421611731,1777956643000,-500.0,0.00042273,120]
[421611732,1777956643000,-500.0,0.00042273,120]
[421611737,1777956643000,-500.0,0.00042273,120]
[421611734,1777956643000,-500.0,0.00042273,120]
[421611736,1777956643000,-500.0,0.00042273,120]
[421611735,1777956643000,-500.0,0.00042273,120]
[421611733,1777956643000,-500.0,0.00042273,120]
[421611745,1777956643000,-500.0,0.00042273,120]
[421611749,1777956643000,-500.0,0.00042273,120]
[421611747,1777956643000,-500.0,0.00042273,120]
[421611752,1777956643000,-500.0,0.00042273,120]
[421611751,1777956643000,-500.0,0.00042273,120]
[421611754,1777956643000,-500.0,0.00042273,120]
[421611756,1777956643000,-500.0,0.00042273,120]
[421611757,1777956643000,-500.0,0.00042273,120]
[421611753,1777956643000,-500.0,0.00042273,120]
[421611760,1777956643000,-500.0,0.00042273,120]
[421611758,1777956643000,-500.0,0.00042273,120]
[421611759,1777956643000,-500.0,0.00042273,120]
[421611762,1777956643000,-500.0,0.00042273,120]
[421611772,1777956643000,-500.0,0.00042273,120]
[421611773,1777956643000,-500.0,0.00042273,120]
[421611774,1777956643000,-500.0,0.00042273,120]
[421611763,1777956643000,-500.0,0.00042273,120]
[421611765,1777956643000,-500.0,0.00042273,120]
[421611767,1777956643000,-500.0,0.00042273,120]
[421611802,1777956643000,-19045.73954004,0.00042305,120]
[421611755,1777956643000,-861.0,0.00042273,120]
[421611803,1777956643000,-783.0,0.00042326,60]
[421611834,1777956643000,-158.19593107,0.00042437,2]
[421611839,1777956643000,-150.0,0.00042438,30]
[421611842,1777956643000,-150.0,0.00042438,30]
[421611851,1777956643000,-150.0,0.00042444,2]
[421611843,1777956643000,-1337.30371513,0.00042439,30]
[421611841,1777956643000,-150.0,0.00042438,30]
[421611844,1777956643000,-289.0029057,0.00042439,2]
[421611852,1777956643000,-150.0,0.00042444,2]
[421611853,1777956643000,-150.0,0.00042444,2]
[421611846,1777956643000,-783.0,0.00042441,60]
[421611848,1777956643000,-150.0,0.00042443,2]
[421611849,1777956643000,-150.0,0.00042443,2]
[421611847,1777956643000,-150.0,0.00042443,2]
[421611845,1777956643000,-1289.58892491,0.0004244,30]
[421611850,1777956643000,-253.0,0.00042443,2]
[421611854,1777956643000,-150.0,0.00042444,2]
[421611857,1777956643000,-888.0,0.00042447,60]
[421611856,1777956643000,-152.0,0.00042444,2]
[421611855,1777956643000,-150.0,0.00042444,2]
[421611858,1777956643000,-548.36744463,0.0004245,120]
[421611863,1777956643000,-7413.5006602,0.00042454,2]
[421611859,1777956643000,-202.29145079,0.00042454,120]
[421611860,1777956643000,-1243.57659104,0.00042454,30]
[421611862,1777956643000,-312.1926485,0.00042454,2]
[421611861,1777956643000,-672.1575863,0.00042454,2]
[421611865,1777956643000,-243.06463312,0.00042455,30]
[421611867,1777956643000,-1199.20597015,0.00042457,30]
[421611866,1777956643000,-2000.0,0.00042455,120]
[421611804,1777956643000,-783.0,0.00042343,60]
[421611838,1777956643000,-151.6379082,0.00042438,30]
[421611835,1777956643000,-972.29817285,0.00042437,120]
[421611864,1777956643000,-151.0,0.00042455,30]
[421611837,1777956643000,-152.47464645,0.00042438,30]
[421611836,1777956643000,-150.0,0.00042438,120]
[421611807,1777956643000,-783.0,0.00042352,60]
[421611805,1777956643000,-888.0,0.0004235,60]
[421611813,1777956643000,-802.0,0.00042371,60]
[421611810,1777956643000,-1399.150381,0.00042364,2]
[421611808,1777956643000,-696.70150426,0.00042355,2]
[421611809,1777956643000,-3012.4013081,0.00042364,2]
[421611812,1777956643000,-865.27674835,0.00042371,60]
[421611811,1777956643000,-33225.0048819,0.00042364,2]
[421611815,1777956643000,-9171.9257218,0.00042372,2]
[421611826,1777956643000,-796.06840668,0.00042419,120]
[421611825,1777956643000,-1399.53086512,0.00042419,15]
[421611814,1777956643000,-9006.9323209,0.00042372,2]
[421611816,1777956643000,-299.61774381,0.00042376,2]
[421611817,1777956643000,-463.0,0.00042386,120]
[421611806,1777956643000,-1295.2211639,0.00042352,2]
[421611818,1777956643000,-1121.39058572,0.000424,120]
[421611821,1777956643000,-173.81639782,0.00042409,7]
[421611840,1777956643000,-164.96627633,0.00042438,30]
[421611829,1777956643000,-215.87999275,0.00042419,2]
[421611830,1777956643000,-1297.0,0.00042424,60]
[421611828,1777956643000,-1853.21476741,0.00042419,2]
[421611831,1777956643000,-888.0,0.00042432,60]
[421611832,1777956643000,-462.0889822,0.00042436,120]
[421611823,1777956643000,-200.48627817,0.00042419,2]
[421611822,1777956643000,-783.0,0.00042418,60]
[421611827,1777956643000,-2616.85509076,0.00042419,15]
[421611819,1777956643000,-200.0,0.000424,10]
[421611833,1777956643000,-1000.0,0.00042437,2]
[421611820,1777956643000,-193.155,0.000424,46]
[421611824,1777956643000,-200.48627816,0.00042419,2]
[421611911,1777956644000,-3709.22,0.00042465,7]
[421611904,1777956644000,-3709.22,0.00042465,7]
[421611905,1777956644000,-3709.22,0.00042465,7]
[421611906,1777956644000,-3709.22,0.00042465,7]
[421611912,1777956644000,-3709.22,0.00042465,7]
[421611913,1777956644000,-19430.75,0.00042465,7]
[421611916,1777956644000,-19430.75,0.00042465,7]
[421611918,1777956644000,-19430.75,0.00042465,7]
[421611917,1777956644000,-19430.75,0.00042465,7]
[421611915,1777956644000,-19430.75,0.00042465,7]
[421611907,1777956644000,-3709.22,0.00042465,7]
[421611908,1777956644000,-3709.22,0.00042465,7]
[421611921,1777956644000,-19430.75,0.00042465,7]
[421611914,1777956644000,-19430.75,0.00042465,7]
[421611920,1777956644000,-19430.75,0.00042465,7]
[421611924,1777956644000,-150.0,0.00042468,2]
[421611919,1777956644000,-19430.75,0.00042465,7]
[421611923,1777956644000,-19430.75,0.00042465,7]
[421611925,1777956644000,-150.0,0.00042468,4]
[421611927,1777956644000,-274.424716,0.00042472,78]
[421611937,1777956644000,-3709.22,0.00042499,7]
[421611938,1777956644000,-1600.85589726,0.000425,120]
[421611933,1777956644000,-3709.22,0.00042491,7]
[421611939,1777956644000,-791.8,0.000425,120]
[421611902,1777956644000,-3709.22,0.00042465,7]
[421611934,1777956644000,-19430.75,0.00042492,7]
[421611922,1777956644000,-19430.75,0.00042465,7]
[421611909,1777956644000,-3709.22,0.00042465,7]
[421611888,1777956644000,-500.0,0.00042465,2]
[421611910,1777956644000,-3709.22,0.00042465,7]
[421611929,1777956644000,-150.0,0.00042478,2]
[421611869,1777956644000,-2009.7182512,0.00042464,2]
[421611880,1777956644000,-501.03821405,0.00042465,2]
[421611881,1777956644000,-583.25095014,0.00042465,7]
[421611879,1777956644000,-504.26370306,0.00042465,2]
[421611872,1777956644000,-500.0,0.00042465,7]
[421611871,1777956644000,-500.0,0.00042465,7]
[421611874,1777956644000,-500.0,0.00042465,7]
[421611870,1777956644000,-2046.5332551,0.00042464,2]
[421611868,1777956644000,-151.0,0.00042462,14]
[421611873,1777956644000,-500.0,0.00042465,7]
[421611876,1777956644000,-500.0,0.00042465,7]
[421611878,1777956644000,-256.79631409,0.00042465,7]
[421611875,1777956644000,-500.0,0.00042465,7]
[421611885,1777956644000,-500.0,0.00042465,2]
[421611883,1777956644000,-500.0,0.00042465,2]
[421611884,1777956644000,-500.0,0.00042465,2]
[421611892,1777956644000,-500.0,0.00042465,2]
[421611882,1777956644000,-190.20508358,0.00042465,2]
[421611887,1777956644000,-500.0,0.00042465,2]
[421611886,1777956644000,-500.0,0.00042465,2]
[421611890,1777956644000,-500.0,0.00042465,2]
[421611894,1777956644000,-500.0,0.00042465,2]
[421611896,1777956644000,-500.0,0.00042465,2]
[421611895,1777956644000,-500.0,0.00042465,2]
[421611897,1777956644000,-500.0,0.00042465,2]
[421611899,1777956644000,-354.55263449,0.00042465,120]
[421611901,1777956644000,-3709.22,0.00042465,7]
[421611926,1777956644000,-483.56049089,0.0004247,3]
[421611877,1777956644000,-500.0,0.00042465,7]
[421611930,1777956644000,-221.0,0.00042478,2]
[421611975,1777956644000,-208.40611426,0.00042518,2]
[421611976,1777956644000,-3709.22,0.00042518,7]
[421611977,1777956644000,-3709.22,0.00042518,7]
[421611969,1777956644000,-267.53507715,0.00042509,7]
[421611974,1777956644000,-500.0,0.00042518,2]
[421611972,1777956644000,-278.94789362,0.00042515,120]
[421611970,1777956644000,-151.0,0.00042509,120]
[421611968,1777956644000,-267.53507715,0.00042509,7]
[421611971,1777956644000,-153.896812,0.00042509,120]
[421611973,1777956644000,-500.0,0.00042518,2]
[421611978,1777956644000,-3709.22,0.00042518,7]
[421611979,1777956644000,-3709.22,0.00042518,7]
[421611980,1777956644000,-3709.22,0.00042518,7]
[421611982,1777956644000,-3709.22,0.00042518,7]
[421611988,1777956644000,-14786.14567413,0.00042519,47]
[421611985,1777956644000,-3709.22,0.00042518,7]
[421611983,1777956644000,-3709.22,0.00042518,7]
[421611987,1777956644000,-239.51178489,0.00042519,120]
[421611986,1777956644000,-3709.28398563,0.00042518,7]
[421611984,1777956644000,-3709.22,0.00042518,7]
[421611989,1777956644000,-1376.73128119,0.00042519,10]
[421611992,1777956644000,-158.0,0.00042519,120]
[421611990,1777956644000,-15126.75472149,0.00042519,30]
[421611991,1777956644000,-158.0,0.00042519,120]
[421611994,1777956644000,-3913632.35122366,0.00042519,30]
[421611993,1777956644000,-158.0,0.00042519,120]
[421611928,1777956644000,-280.0,0.00042478,2]
[421611965,1777956644000,-165.0,0.00042509,120]
[421611967,1777956644000,-162.0,0.00042509,120]
[421611981,1777956644000,-3709.22,0.00042518,7]
[421611964,1777956644000,-159.0,0.00042509,120]
[421611966,1777956644000,-166.0,0.00042509,120]
[421611936,1777956644000,-10092.22805545,0.00042493,30]
[421611931,1777956644000,-1156.41848616,0.00042481,30]
[421611935,1777956644000,-10092.22805545,0.00042493,30]
[421611940,1777956644000,-1714.25,0.000425,120]
[421611951,1777956644000,-19430.75,0.00042508,7]
[421611944,1777956644000,-1015.0,0.000425,2]
[421611943,1777956644000,-721.57,0.000425,30]
[421611942,1777956644000,-247.82056087,0.000425,120]
[421611941,1777956644000,-1731.42,0.000425,14]
[421611949,1777956644000,-19430.75,0.00042508,7]
[421611945,1777956644000,-181.73,0.000425,30]
[421611950,1777956644000,-19430.75,0.00042508,7]
[421611947,1777956644000,-300.0,0.000425,10]
[421611948,1777956644000,-19430.75,0.00042508,7]
[421611954,1777956644000,-19430.75,0.00042508,7]
[421611946,1777956644000,-7207.82,0.000425,7]
[421611953,1777956644000,-19430.75,0.00042508,7]
[421611952,1777956644000,-19430.75,0.00042508,7]
[421611963,1777956644000,-155.0,0.00042509,120]
[421611961,1777956644000,-161.0,0.00042509,120]
[421611958,1777956644000,-19430.75,0.00042508,7]
[421611962,1777956644000,-155.0,0.00042509,120]
[421611932,1777956644000,-151.0,0.0004249,14]
[421611959,1777956644000,-19430.98015848,0.00042508,7]
[421611960,1777956644000,-165.0,0.00042509,120]
[421611955,1777956644000,-19430.75,0.00042508,7]
[421611956,1777956644000,-19430.75,0.00042508,7]
[421611957,1777956644000,-19430.75,0.00042508,7]
[421611995,1777956645000,-275.80818273,0.00042519,30]
[421612000,1777956646000,-3879.18885623,0.00041248,28]
[421611999,1777956646000,-3879.18885623,0.00040857,28]
[421612003,1777956646000,-5080.44968707,0.00042519,30]
[421612001,1777956646000,-3650.31103262,0.00042419,2]
[421612002,1777956646000,-18820.83428761,0.00042519,30]
[421612008,1777956661000,257.87468113,0.00023145,120]
[421612009,1777956664000,300.58970933,0.00023145,30]
[421612039,1777957651000,-190.76,0.00032217,2]
[421612040,1777957651000,-153.0,0.00032258,30]
[421612038,1777957651000,-500.0,0.00031644,2]
[421612037,1777957651000,-153.0,0.00031258,30]
[421612036,1777957651000,-150.0,0.00031011,2]
[421612035,1777957651000,-150.0,0.00029534,2]
[421612032,1777957651000,-185.12,0.00024658,2]
[421612034,1777957651000,-543.0,0.00027137,2]
[421612033,1777957651000,-185.15,0.00024658,2]
[421612031,1777957651000,-185.38,0.00024658,2]
[421612029,1777957651000,-659.0,0.00019999,2]
[421612025,1777957651000,-155.56846315,0.00017,2]
[421612027,1777957651000,-199.7613,0.000199,2]
[421612028,1777957651000,-300.0,0.00019999,2]
[421612026,1777957651000,-250.0,0.00018188,2]
[421612041,1777957651000,-185.15,0.00032467,2]
[421612022,1777957651000,-300.0,0.00016,2]
[421612023,1777957651000,-151.0,0.00017,2]
[421612020,1777957651000,-250.0,0.00015,2]
[421612021,1777957651000,-250.0,0.000154,2]
[421612019,1777957651000,-250.0,0.00014,2]
[421612030,1777957651000,-4834.92083196,0.0002,2]
[421612042,1777957651000,-185.15,0.00032494,7]
[421612024,1777957651000,-151.0,0.00017,2]
[421612045,1777957651000,-150.0,0.00032562,2]
[421612044,1777957651000,-185.12,0.00032523,7]
[421612065,1777957651000,-240.78,0.00035647,2]
[421612066,1777957651000,-167.95,0.00035681,2]
[421612063,1777957651000,-163.0,0.00035258,30]
[421612064,1777957651000,-456.95,0.00035308,2]
[421612062,1777957651000,-152.0,0.00034893,3]
[421612060,1777957651000,-1150.397,0.00034863,40]
[421612059,1777957651000,-185.19109655,0.00034863,40]
[421612061,1777957651000,-459.81,0.00034887,2]
[421612058,1777957651000,-1119.0,0.000348,5]
[421612057,1777957651000,-155.84321884,0.000345,7]
[421612067,1777957651000,-150.0,0.00035899,2]
[421612056,1777957651000,-153.0,0.00034258,30]
[421612054,1777957651000,-2570.7,0.00034032,60]
[421612052,1777957651000,-5000.0,0.00033744,60]
[421612053,1777957651000,-543.0,0.00033745,9]
[421612051,1777957651000,-150.0,0.00033499,2]
[421612050,1777957651000,-524.98401221,0.00033499,7]
[421612047,1777957651000,-172.0,0.00033,120]
[421612049,1777957651000,-500.0,0.00033499,7]
[421612048,1777957651000,-153.0,0.00033258,30]
[421612046,1777957651000,-5000.0,0.00032907,60]
[421612043,1777957651000,-185.12,0.00032523,2]
[421612055,1777957651000,-150.0,0.0003419,2]
[421612081,1777957652000,-240.78,0.00036538,2]
[421612082,1777957652000,-150.0,0.00036575,7]
[421612083,1777957652000,-150.992,0.00036901,2]
[421612088,1777957652000,-928.0,0.00036901,2]
[421612084,1777957652000,-265.836,0.00036901,2]
[421612085,1777957652000,-1663.0,0.00036901,2]
[421612087,1777957652000,-1267.0,0.00036901,2]
[421612079,1777957652000,-150.0,0.00036173,7]
[421612086,1777957652000,-1364.169,0.00036901,2]
[421612080,1777957652000,-150.0,0.00036173,7]
[421612073,1777957652000,-150.0,0.00036173,7]
[421612074,1777957652000,-150.0,0.00036173,7]
[421612077,1777957652000,-150.72884545,0.00036173,7]
[421612076,1777957652000,-261.68366572,0.00036173,7]
[421612071,1777957652000,-150.20530018,0.00036173,7]
[421612070,1777957652000,-150.0,0.00036173,30]
[421612072,1777957652000,-150.0,0.00036173,7]
[421612069,1777957652000,-339.95478502,0.00036164,2]
[421612068,1777957652000,-509.0,0.00036164,2]
[421612090,1777957652000,-150.0,0.00036976,7]
[421612078,1777957652000,-150.0,0.00036173,7]
[421612089,1777957652000,-1221.0,0.00036901,2]
[421612075,1777957652000,-150.0,0.00036173,7]
[421612092,1777957652000,-190.53878735,0.000372,120]
[421612091,1777957652000,-12003.28,0.0003707,2]
[421612114,1777957652000,-3539.28992609,0.00039561,2]
[421612112,1777957652000,-459.81,0.00039248,2]
[421612113,1777957652000,-150.0,0.00039388,7]
[421612111,1777957652000,-240.78,0.00039211,2]
[421612110,1777957652000,-150.0,0.00038986,7]
[421612109,1777957652000,-200.0,0.00038955,2]
[421612106,1777957652000,-150.0,0.00038584,7]
[421612107,1777957652000,-175.84991684,0.00038834,2]
[421612105,1777957652000,-5000.0,0.00038568,120]
[421612103,1777957652000,-240.78,0.0003832,2]
[421612108,1777957652000,-150.0,0.00038852,7]
[421612104,1777957652000,-405.0,0.00038536,30]
[421612094,1777957652000,-152.0,0.00037404,4]
[421612101,1777957652000,-150.0,0.00038182,7]
[421612093,1777957652000,-150.0,0.00037378,7]
[421612096,1777957652000,-150.0,0.00037512,7]
[421612098,1777957652000,-500.0,0.00038055,2]
[421612095,1777957652000,-240.78,0.00037429,2]
[421612100,1777957652000,-150.0,0.00038182,7]
[421612099,1777957652000,-150.0,0.00038182,30]
[421612102,1777957652000,-150.0,0.00038182,7]
[421612097,1777957652000,-150.0,0.0003778,7]
[421612122,1777957653000,-500.0,0.00039775,7]
[421612115,1777957653000,-19375.69,0.00039562,2]
[421612117,1777957653000,-219.199999,0.000396,31]
[421612118,1777957653000,-219.199999,0.000396,31]
[421612119,1777957653000,-219.2,0.000396,31]
[421612120,1777957653000,-219.199999,0.000396,31]
[421612121,1777957653000,-500.0,0.00039775,7]
[421612123,1777957653000,-500.0,0.00039775,7]
[421612124,1777957653000,-603.31885694,0.00039775,7]
[421612116,1777957653000,-219.2,0.000396,31]
[421612125,1777957653000,-150.0,0.0003979,7]
[421612128,1777957653000,-928.0,0.00039901,2]
[421612127,1777957653000,-1351.0,0.00039901,2]
[421612129,1777957653000,-367.721,0.00039901,2]
[421612130,1777957653000,-152.0,0.00039915,5]
[421612131,1777957653000,-2010.84478988,0.0004,120]
[421612132,1777957653000,-315.0,0.0004,14]
[421612133,1777957653000,-155.16,0.0004,120]
[421612134,1777957653000,-69548.7208829,0.0004,2]
[421612126,1777957653000,-150.0,0.00039901,2]
[421612137,1777957746000,-162.51838138,0.00021333,2]
[421612139,1777957746000,-610.24890946,0.000318,2]
[421612140,1777957746000,-98.32844426,0.000318,2]
[421612138,1777957746000,-261.5352469,0.00022407,2]
[421612165,1777957831000,-155.42950694,0.00040197,14]
[421612162,1777957831000,-150.00000001,0.00040192,7]
[421612164,1777957831000,-150.0,0.00040192,7]
[421612161,1777957831000,-150.0,0.00040192,7]
[421612168,1777957831000,-500.0,0.00040199,31]
[421612178,1777957831000,-500.0,0.00040199,31]
[421612171,1777957831000,-311.51655914,0.00040199,31]
[421612169,1777957831000,-415.85661456,0.00040199,31]
[421612172,1777957831000,-500.0,0.00040199,31]
[421612173,1777957831000,-500.0,0.00040199,31]
[421612179,1777957831000,-500.0,0.00040199,31]
[421612180,1777957831000,-499.48530511,0.00040199,31]
[421612159,1777957831000,-150.0,0.00040192,7]
[421612170,1777957831000,-241.00300913,0.00040199,31]
[421612163,1777957831000,-150.0,0.00040192,7]